[Event "*** MasterClass Titled Tuesday Blitz"]
[Site "Chess.com"]
[Date "2017.12.05"]
[Round "4"]
[White "indfraeng"]
[Black "hhbcd_grob_bes"]
[Result "1-0"]
[WhiteElo "1841"]
[BlackElo "1383"]
[TimeControl "180+2"]
[EndTime "15:02:40 PST"]
[Termination "indfraeng won by resignation"]

1. d4 {[%clk 0:03:01.9]} 1... Nf6 {[%clk 0:03:00.1]} 2. c4 {[%clk 0:03:00.5]}
2... c6 {[%clk 0:03:01.2]} 3. Nc3 {[%clk 0:02:59.5]} 3... d5 {[%clk 0:03:02.6]}
4. cxd5 {[%clk 0:02:56.8]} 4... Nxd5 {[%clk 0:03:00.3]} 5. e4 {[%clk 0:02:54.3]}
5... Nxc3 {[%clk 0:03:00.6]} 6. bxc3 {[%clk 0:02:56.2]} 6... e5 {[%clk
0:02:59.4]} 7. Nf3 {[%clk 0:02:54]} 7... Bg4 {[%clk 0:02:49.4]} 8. Be3 {[%clk
0:02:51.6]} 8... exd4 {[%clk 0:02:41.8]} 9. cxd4 {[%clk 0:02:49.3]} 9... Bb4+
{[%clk 0:02:42.1]} 10. Bd2 {[%clk 0:02:47.7]} 10... Bxf3 {[%clk 0:02:39.8]} 11.
gxf3 {[%clk 0:02:48.1]} 11... Qxd4 {[%clk 0:02:39.1]} 12. Rb1 {[%clk 0:02:41.4]}
12... Bxd2+ {[%clk 0:02:39.5]} 13. Qxd2 {[%clk 0:02:41.9]} 13... Qxd2+ {[%clk
0:02:40.6]} 14. Kxd2 {[%clk 0:02:43.8]} 14... b6 {[%clk 0:02:41.9]} 15. Rg1
{[%clk 0:02:39.6]} 15... g6 {[%clk 0:02:35]} 16. Bc4 {[%clk 0:02:38.9]} 16...
Nd7 {[%clk 0:02:34.9]} 17. Rbc1 {[%clk 0:02:37.9]} 17... Ne5 {[%clk 0:02:32.4]}
18. Be2 {[%clk 0:02:36]} 18... Rd8+ {[%clk 0:02:29.7]} 19. Ke3 {[%clk 0:02:37]}
19... Ke7 {[%clk 0:02:23.2]} 20. f4 {[%clk 0:02:37.8]} 20... Nd7 {[%clk
0:02:05.1]} 21. Rxc6 {[%clk 0:02:24.6]} 21... Nc5 {[%clk 0:02:06.2]} 22. Rc7+
{[%clk 0:02:23.5]} 22... Rd7 {[%clk 0:02:01.6]} 23. Rxd7+ {[%clk 0:02:22.6]}
23... Kxd7 {[%clk 0:02:02.2]} 24. Rd1+ {[%clk 0:02:23.2]} 24... Ke6 {[%clk
0:02:03.2]} 25. Bc4+ {[%clk 0:02:23.5]} 25... Kf6 {[%clk 0:02:01.3]} 26. Rd5
{[%clk 0:02:13.2]} 26... Re8 {[%clk 0:01:54.9]} 27. f3 {[%clk 0:02:12.8]} 27...
Kg7 {[%clk 0:01:54.1]} 28. a4 {[%clk 0:02:08.6]} 28... Rc8 {[%clk 0:01:45]} 29.
Ba2 {[%clk 0:01:59.5]} 29... Rc7 {[%clk 0:01:29.7]} 30. Rd4 {[%clk 0:01:52.3]}
30... h5 {[%clk 0:01:19]} 31. e5 {[%clk 0:01:49.8]} 31... Ne6 {[%clk 0:01:15.6]}
32. Bxe6 {[%clk 0:01:48]} 32... fxe6 {[%clk 0:01:16.7]} 33. Rd6 {[%clk 0:01:48]}
33... Kf7 {[%clk 0:01:16.8]} 34. Rd8 {[%clk 0:01:44.9]} 34... Rc4 {[%clk
0:01:15.2]} 35. Rd7+ {[%clk 0:01:44.4]} 35... Ke8 {[%clk 0:01:13.5]} 36. Rxa7
{[%clk 0:01:46.3]} 36... Rc3+ {[%clk 0:01:12.3]} 37. Kf2 {[%clk 0:01:44.4]}
37... Rc2+ {[%clk 0:01:10.2]} 38. Kg3 {[%clk 0:01:45.7]} 38... Rc4 {[%clk
0:01:07.8]} 39. Ra6 {[%clk 0:01:43.4]} 39... Kf7 {[%clk 0:01:04.4]} 40. Ra7+
{[%clk 0:01:26.7]} 40... Kg8 {[%clk 0:00:59.5]} 41. Re7 {[%clk 0:01:24.4]} 41...
Rc6 {[%clk 0:00:58.9]} 42. Kh4 {[%clk 0:01:21.7]} 42... Kf8 {[%clk 0:00:59.6]}
43. Ra7 {[%clk 0:01:20.5]} 43... Rc3 {[%clk 0:00:58.4]} 44. Kg5 {[%clk
0:01:21.6]} 44... Rxf3 {[%clk 0:00:59]} 45. h4 {[%clk 0:01:16.2]} 45... Ke8
{[%clk 0:00:52.4]} 46. Rb7 {[%clk 0:01:08.6]} 46... Ra3 {[%clk 0:00:44.5]} 47.
Rxb6 {[%clk 0:01:09]} 47... Rxa4 {[%clk 0:00:45.5]} 48. Rxe6+ {[%clk 0:01:09.7]}
48... Kd7 {[%clk 0:00:47.1]} 49. Rxg6 {[%clk 0:01:11.2]} 49... Ke7 {[%clk
0:00:46.8]} 50. Rf6 {[%clk 0:01:11.6]} 50... Ke8 {[%clk 0:00:46.6]} 51. Kxh5
{[%clk 0:01:12.7]} 51... Ra7 {[%clk 0:00:46.7]} 52. Kg6 {[%clk 0:01:13.7]} 52...
Ke7 {[%clk 0:00:45.9]} 53. h5 {[%clk 0:01:14.6]} 53... Ke8 {[%clk 0:00:47]} 54.
h6 {[%clk 0:01:15.4]} 1-0

[Event "*** MasterClass Titled Tuesday Blitz"]
[Site "Chess.com"]
[Date "2017.12.05"]
[Round "4"]
[White "GMMarcinDziuba"]
[Black "temiksmozg"]
[Result "0-1"]
[WhiteElo "2507"]
[BlackElo "2502"]
[TimeControl "180+2"]
[EndTime "15:02:45 PST"]
[Termination "temiksmozg won by resignation"]

1. d4 {[%clk 0:02:59.7]} 1... f5 {[%clk 0:02:59]} 2. Nc3 {[%clk 0:02:59.2]} 2...
Nf6 {[%clk 0:02:58.7]} 3. Bg5 {[%clk 0:02:59.2]} 3... d5 {[%clk 0:02:59.9]} 4.
Nf3 {[%clk 0:02:56.5]} 4... e6 {[%clk 0:02:58.4]} 5. e3 {[%clk 0:02:57.2]} 5...
a6 {[%clk 0:02:58.1]} 6. Bd3 {[%clk 0:02:54.4]} 6... c5 {[%clk 0:02:59]} 7. dxc5
{[%clk 0:02:55]} 7... Nc6 {[%clk 0:02:58.6]} 8. O-O {[%clk 0:02:51]} 8... Bxc5
{[%clk 0:02:59.6]} 9. Na4 {[%clk 0:02:16]} 9... Be7 {[%clk 0:02:47.1]} 10. Nd4
{[%clk 0:02:03.9]} 10... Bd7 {[%clk 0:02:42.7]} 11. c4 {[%clk 0:02:00.1]} 11...
Nxd4 {[%clk 0:02:36.6]} 12. exd4 {[%clk 0:02:00.2]} 12... dxc4 {[%clk
0:02:37.2]} 13. Be2 {[%clk 0:01:57.4]} 13... Bxa4 {[%clk 0:02:27.8]} 14. Qxa4+
{[%clk 0:01:57.4]} 14... b5 {[%clk 0:02:29.1]} 15. Qc2 {[%clk 0:01:55.4]} 15...
Nd5 {[%clk 0:02:07.4]} 16. Bxe7 {[%clk 0:01:54]} 16... Qxe7 {[%clk 0:02:09.3]}
17. Bf3 {[%clk 0:01:53.2]} 17... Rd8 {[%clk 0:02:09.7]} 18. Rfe1 {[%clk
0:01:53.8]} 18... O-O {[%clk 0:02:08.6]} 19. Re5 {[%clk 0:01:47.3]} 19... Nf4
{[%clk 0:02:04.9]} 20. d5 {[%clk 0:00:59.5]} 20... Qf6 {[%clk 0:01:54.7]} 21.
Ree1 {[%clk 0:00:26.8]} 21... exd5 {[%clk 0:01:51.3]} 22. b3 {[%clk 0:00:26.5]}
22... c3 {[%clk 0:01:20.1]} 23. g3 {[%clk 0:00:25.2]} 23... Ne6 {[%clk
0:01:15.2]} 24. Bg2 {[%clk 0:00:22.2]} 24... d4 {[%clk 0:01:13.7]} 25. b4 {[%clk
0:00:16.1]} 25... Kh8 {[%clk 0:01:04.3]} 26. Rad1 {[%clk 0:00:15.7]} 26... g6
{[%clk 0:00:59.2]} 27. Qb3 {[%clk 0:00:15]} 27... Ng5 {[%clk 0:00:59.9]} 28. Rd3
{[%clk 0:00:07.3]} 28... Rd6 {[%clk 0:00:57.6]} 29. f3 {[%clk 0:00:06.6]} 29...
Rfd8 {[%clk 0:00:55.8]} 30. h4 {[%clk 0:00:07.6]} 30... Nf7 {[%clk 0:00:56.3]}
31. f4 {[%clk 0:00:08.7]} 31... Nh6 {[%clk 0:00:56.2]} 32. Qd1 {[%clk 0:00:05]}
32... Ng4 {[%clk 0:00:55.6]} 33. Bf3 {[%clk 0:00:05.5]} 33... Ne3 {[%clk
0:00:56.8]} 34. Qb3 {[%clk 0:00:06.5]} 34... Nc4 {[%clk 0:00:56.7]} 35. Kf2
{[%clk 0:00:05.8]} 35... Nb2 {[%clk 0:00:55.4]} 36. Qc2 {[%clk 0:00:03.2]} 36...
Nxd3+ {[%clk 0:00:54.3]} 37. Qxd3 {[%clk 0:00:05.1]} 37... Re6 {[%clk
0:00:53.8]} 38. h5 {[%clk 0:00:05.8]} 38... Rxe1 {[%clk 0:00:54.1]} 39. Kxe1
{[%clk 0:00:07.7]} 39... Qe6+ {[%clk 0:00:55.2]} 40. Be2 {[%clk 0:00:09.1]}
40... Qe4 {[%clk 0:00:55.3]} 0-1

[Event "*** MasterClass Titled Tuesday Blitz"]
[Site "Chess.com"]
[Date "2017.12.05"]
[Round "4"]
[White "pKiLz5Rn9b"]
[Black "Zenzo"]
[Result "1-0"]
[WhiteElo "2645"]
[BlackElo "2489"]
[TimeControl "180+2"]
[EndTime "15:02:47 PST"]
[Termination "pKiLz5Rn9b won by checkmate"]

1. b3 {[%clk 0:03:01.9]} 1... Nf6 {[%clk 0:02:58.6]} 2. Bb2 {[%clk 0:02:59.2]}
2... b5 {[%clk 0:02:58.5]} 3. Nf3 {[%clk 0:02:55.3]} 3... Bb7 {[%clk 0:02:59.4]}
4. e3 {[%clk 0:02:56.4]} 4... a6 {[%clk 0:02:51.6]} 5. d4 {[%clk 0:02:55.1]}
5... e6 {[%clk 0:02:50.6]} 6. Bd3 {[%clk 0:02:55.9]} 6... c5 {[%clk 0:02:50.4]}
7. O-O {[%clk 0:02:55.3]} 7... cxd4 {[%clk 0:02:49.5]} 8. exd4 {[%clk
0:02:54.9]} 8... Be7 {[%clk 0:02:49.3]} 9. c4 {[%clk 0:02:55.2]} 9... bxc4
{[%clk 0:02:47.4]} 10. bxc4 {[%clk 0:02:56.2]} 10... O-O {[%clk 0:02:48]} 11.
Nc3 {[%clk 0:02:57.7]} 11... Nc6 {[%clk 0:02:47.5]} 12. d5 {[%clk 0:02:48.7]}
12... Nb4 {[%clk 0:02:47.8]} 13. Be2 {[%clk 0:02:49.9]} 13... exd5 {[%clk
0:02:44.3]} 14. a3 {[%clk 0:02:50]} 14... d4 {[%clk 0:02:30.9]} 15. Nxd4 {[%clk
0:02:50.6]} 15... Nc6 {[%clk 0:02:31.7]} 16. Nf5 {[%clk 0:02:51.2]} 16... Bc5
{[%clk 0:02:28.7]} 17. Nd5 {[%clk 0:02:49.5]} 17... Ne8 {[%clk 0:02:06.9]} 18.
Bd3 {[%clk 0:01:48.3]} 18... Qg5 {[%clk 0:01:28.2]} 19. h4 {[%clk 0:01:45.8]}
19... Qg6 {[%clk 0:01:07.4]} 20. Nxg7 {[%clk 0:01:31.1]} 20... Nxg7 {[%clk
0:00:38.9]} 21. Bxg6 {[%clk 0:01:30.6]} 21... fxg6 {[%clk 0:00:39.3]} 22. Nf6+
{[%clk 0:01:29.6]} 22... Kh8 {[%clk 0:00:37.8]} 23. Qxd7 {[%clk 0:01:25.9]}
23... Nd8 {[%clk 0:00:10.7]} 24. Ne8 {[%clk 0:00:59.4]} 24... Rf7 {[%clk
0:00:11.6]} 25. Bxg7+ {[%clk 0:01:00]} 25... Kg8 {[%clk 0:00:13]} 26. Qd3 {[%clk
0:00:58.8]} 26... Ne6 {[%clk 0:00:12.4]} 27. Bc3 {[%clk 0:00:55.4]} 27... Nf4
{[%clk 0:00:11.6]} 28. Qd2 {[%clk 0:00:48.9]} 28... Rxe8 {[%clk 0:00:12.7]} 29.
Rae1 {[%clk 0:00:43.8]} 29... Ref8 {[%clk 0:00:13.9]} 30. Bd4 {[%clk 0:00:44]}
30... Bxa3 {[%clk 0:00:14.1]} 31. f3 {[%clk 0:00:41.3]} 31... Nh5 {[%clk
0:00:13.9]} 32. c5 {[%clk 0:00:39.4]} 32... Rc8 {[%clk 0:00:11.5]} 33. Qa5
{[%clk 0:00:39]} 33... Rd7 {[%clk 0:00:08.6]} 34. Rd1 {[%clk 0:00:36.3]} 34...
Rxd4 {[%clk 0:00:09.8]} 35. Qxa3 {[%clk 0:00:33.8]} 35... Rc4 {[%clk 0:00:11.2]}
36. Qb3 {[%clk 0:00:30.3]} 36... Rxc5 {[%clk 0:00:12.5]} 37. Qxb7 {[%clk
0:00:31.7]} 37... Nf4 {[%clk 0:00:14]} 38. Rd8# {[%clk 0:00:32.1]} 1-0

[Event "*** MasterClass Titled Tuesday Blitz"]
[Site "Chess.com"]
[Date "2017.12.05"]
[Round "4"]
[White "Vojtastr"]
[Black "MRniceplay"]
[Result "1-0"]
[WhiteElo "2395"]
[BlackElo "2249"]
[TimeControl "180+2"]
[EndTime "15:03:01 PST"]
[Termination "Vojtastr won by resignation"]

1. d4 {[%clk 0:02:58.2]} 1... Nf6 {[%clk 0:02:58.6]} 2. Nf3 {[%clk 0:02:58.8]}
2... g6 {[%clk 0:02:59.5]} 3. c4 {[%clk 0:02:59.7]} 3... Bg7 {[%clk 0:03:00.9]}
4. Nc3 {[%clk 0:02:59.5]} 4... d5 {[%clk 0:03:01]} 5. cxd5 {[%clk 0:03:00.4]}
5... Nxd5 {[%clk 0:02:54.6]} 6. e4 {[%clk 0:03:00.5]} 6... Nxc3 {[%clk
0:02:55.8]} 7. bxc3 {[%clk 0:03:02.4]} 7... c5 {[%clk 0:02:57]} 8. h3 {[%clk
0:03:03.5]} 8... O-O {[%clk 0:02:54.9]} 9. Be2 {[%clk 0:03:04]} 9... b6 {[%clk
0:02:53.5]} 10. O-O {[%clk 0:03:03.8]} 10... Bb7 {[%clk 0:02:53.9]} 11. Qd3
{[%clk 0:03:02.9]} 11... Qc7 {[%clk 0:02:52.5]} 12. Be3 {[%clk 0:02:56.8]} 12...
Nd7 {[%clk 0:02:49.1]} 13. Nd2 {[%clk 0:02:49.4]} 13... Rad8 {[%clk 0:02:47.3]}
14. Rac1 {[%clk 0:02:41.4]} 14... Qb8 {[%clk 0:02:46.8]} 15. f4 {[%clk
0:02:34.6]} 15... f5 {[%clk 0:02:37.8]} 16. exf5 {[%clk 0:02:30.8]} 16... gxf5
{[%clk 0:02:36.8]} 17. Nf3 {[%clk 0:02:25.2]} 17... Qd6 {[%clk 0:02:10.8]} 18.
Qb1 {[%clk 0:02:11.7]} 18... Qg6 {[%clk 0:01:58.5]} 19. Rf2 {[%clk 0:02:07.8]}
19... Bf6 {[%clk 0:01:57.8]} 20. dxc5 {[%clk 0:01:54.5]} 20... Nxc5 {[%clk
0:01:56.3]} 21. Bxc5 {[%clk 0:01:53.8]} 21... Bxf3 {[%clk 0:01:44.1]} 22. Bxf3
{[%clk 0:01:54.1]} 22... bxc5 {[%clk 0:01:45.3]} 23. Re2 {[%clk 0:01:42.4]}
23... e5 {[%clk 0:01:39.5]} 24. fxe5 {[%clk 0:01:41.2]} 24... Bg5 {[%clk
0:01:40.9]} 25. Rce1 {[%clk 0:01:18.2]} 25... Bf4 {[%clk 0:01:41]} 26. e6 {[%clk
0:01:03.5]} 26... Rfe8 {[%clk 0:01:26.5]} 27. e7 {[%clk 0:01:03.7]} 27... Rd6
{[%clk 0:01:22.4]} 28. Qb5 {[%clk 0:00:59.2]} 28... Kf7 {[%clk 0:00:59.8]} 29.
Qxc5 {[%clk 0:00:30.8]} 29... Rf6 {[%clk 0:00:54.3]} 30. Qc4+ {[%clk 0:00:23.4]}
30... Kg7 {[%clk 0:00:51.5]} 31. Qxf4 {[%clk 0:00:24.2]} 31... h6 {[%clk
0:00:50]} 32. Qh4 {[%clk 0:00:21.4]} 32... Qg5 {[%clk 0:00:48.5]} 33. Qxg5+
{[%clk 0:00:21.8]} 33... hxg5 {[%clk 0:00:50.4]} 34. Bh5 {[%clk 0:00:23.2]}
34... Rxe7 {[%clk 0:00:28.8]} 35. Rxe7+ {[%clk 0:00:25.1]} 35... Kh6 {[%clk
0:00:30.3]} 36. Bf3 {[%clk 0:00:21.4]} 36... g4 {[%clk 0:00:30.8]} 37. hxg4
{[%clk 0:00:21.7]} 37... fxg4 {[%clk 0:00:32.7]} 38. R1e6 {[%clk 0:00:22.1]}
38... Kg5 {[%clk 0:00:29.9]} 39. Rxf6 {[%clk 0:00:22.8]} 39... Kxf6 {[%clk
0:00:31.8]} 40. Rxa7 {[%clk 0:00:23.7]} 40... gxf3 {[%clk 0:00:33.3]} 41. gxf3
{[%clk 0:00:25.6]} 41... Ke5 {[%clk 0:00:34.7]} 42. Ra4 {[%clk 0:00:26.8]} 42...
Kd5 {[%clk 0:00:36.6]} 43. Kf2 {[%clk 0:00:28.3]} 43... Ke5 {[%clk 0:00:38.2]}
44. Ke3 {[%clk 0:00:29.7]} 44... Kd5 {[%clk 0:00:39.7]} 45. f4 {[%clk
0:00:30.6]} 45... Kc5 {[%clk 0:00:41.6]} 46. Rd4 {[%clk 0:00:31.6]} 1-0

[Event "*** MasterClass Titled Tuesday Blitz"]
[Site "Chess.com"]
[Date "2017.12.05"]
[Round "4"]
[White "LuisFSiles"]
[Black "1random"]
[Result "1-0"]
[WhiteElo "2235"]
[BlackElo "2187"]
[TimeControl "180+2"]
[EndTime "15:03:09 PST"]
[Termination "LuisFSiles won by checkmate"]

1. e4 {[%clk 0:03:01.9]} 1... d5 {[%clk 0:03:00.3]} 2. exd5 {[%clk 0:03:01.5]}
2... Nf6 {[%clk 0:03:01.8]} 3. Bb5+ {[%clk 0:02:59.6]} 3... Nbd7 {[%clk
0:03:01.6]} 4. c4 {[%clk 0:02:59]} 4... a6 {[%clk 0:03:02.1]} 5. Bxd7+ {[%clk
0:02:59.9]} 5... Qxd7 {[%clk 0:03:00.8]} 6. d4 {[%clk 0:02:56]} 6... b5 {[%clk
0:03:01.4]} 7. cxb5 {[%clk 0:02:50.3]} 7... axb5 {[%clk 0:02:58.6]} 8. Nf3
{[%clk 0:02:47.1]} 8... Nxd5 {[%clk 0:02:46.9]} 9. O-O {[%clk 0:02:44.8]} 9...
e6 {[%clk 0:02:47.6]} 10. Ne5 {[%clk 0:02:42.7]} 10... Qd6 {[%clk 0:02:37.9]}
11. Nd2 {[%clk 0:02:40.9]} 11... Be7 {[%clk 0:02:26.4]} 12. Ne4 {[%clk
0:02:40.2]} 12... Qb6 {[%clk 0:02:27.6]} 13. Re1 {[%clk 0:02:30.8]} 13... O-O
{[%clk 0:02:24.5]} 14. Nc3 {[%clk 0:02:13.5]} 14... Bb7 {[%clk 0:02:10.9]} 15.
Nxd5 {[%clk 0:02:08.9]} 15... Bxd5 {[%clk 0:02:12.8]} 16. Nd7 {[%clk 0:02:07.8]}
16... Qb7 {[%clk 0:01:05]} 17. Nxf8 {[%clk 0:02:02.3]} 17... Bxf8 {[%clk
0:01:06.9]} 18. f3 {[%clk 0:01:58.7]} 18... g6 {[%clk 0:00:58.4]} 19. Be3 {[%clk
0:01:58.9]} 19... Bg7 {[%clk 0:00:57.4]} 20. a3 {[%clk 0:01:58.6]} 20... c6
{[%clk 0:00:58.5]} 21. Rc1 {[%clk 0:01:57.9]} 21... h5 {[%clk 0:00:59.7]} 22.
Bf4 {[%clk 0:01:41.7]} 22... b4 {[%clk 0:00:55.9]} 23. a4 {[%clk 0:01:35.6]}
23... b3 {[%clk 0:00:27.4]} 24. Ra1 {[%clk 0:01:29.1]} 24... Qb4 {[%clk
0:00:22.7]} 25. Be5 {[%clk 0:01:24.4]} 25... Rxa4 {[%clk 0:00:21]} 26. Bxg7
{[%clk 0:01:22.7]} 26... Kxg7 {[%clk 0:00:22.9]} 27. Rxa4 {[%clk 0:01:22.6]}
27... Qxa4 {[%clk 0:00:24.8]} 28. Qd2 {[%clk 0:01:20.6]} 28... Qc4 {[%clk
0:00:23.7]} 29. Rc1 {[%clk 0:01:20.6]} 29... Qa4 {[%clk 0:00:21.9]} 30. h4
{[%clk 0:01:19.9]} 30... e5 {[%clk 0:00:15.6]} 31. dxe5 {[%clk 0:01:16.7]} 31...
Qxh4 {[%clk 0:00:16.5]} 32. Qc3 {[%clk 0:01:02.5]} 32... Kh7 {[%clk 0:00:14.8]}
33. Qe3 {[%clk 0:01:00.5]} 33... Qe7 {[%clk 0:00:14.6]} 34. Re1 {[%clk
0:00:56.5]} 34... Qe6 {[%clk 0:00:15.7]} 35. Kf2 {[%clk 0:00:55.3]} 35... Qf5
{[%clk 0:00:16.6]} 36. Rh1 {[%clk 0:00:50.3]} 36... Kg8 {[%clk 0:00:15.1]} 37.
Qc3 {[%clk 0:00:48.5]} 37... Qe6 {[%clk 0:00:06]} 38. Ra1 {[%clk 0:00:49]} 38...
Kh7 {[%clk 0:00:06.7]} 39. Ra8 {[%clk 0:00:49.1]} 39... Kg7 {[%clk 0:00:07.2]}
40. Qd4 {[%clk 0:00:48]} 40... Kh7 {[%clk 0:00:08.1]} 41. Qf4 {[%clk 0:00:48.6]}
41... Kg7 {[%clk 0:00:08]} 42. Qg5 {[%clk 0:00:49.9]} 42... Qd7 {[%clk
0:00:07.8]} 43. g4 {[%clk 0:00:50.5]} 43... Qc7 {[%clk 0:00:05.9]} 44. Qf6+
{[%clk 0:00:51.4]} 44... Kh6 {[%clk 0:00:06.9]} 45. Rh8# {[%clk 0:00:52.1]} 1-0

[Event "*** MasterClass Titled Tuesday Blitz"]
[Site "Chess.com"]
[Date "2017.12.05"]
[Round "4"]
[White "maciek_92"]
[Black "FMJoseHerrera"]
[Result "1-0"]
[WhiteElo "2580"]
[BlackElo "2439"]
[TimeControl "180+2"]
[EndTime "15:03:14 PST"]
[Termination "maciek_92 won on time"]

1. c4 {[%clk 0:03:01.9]} 1... Nf6 {[%clk 0:03:00]} 2. Nc3 {[%clk 0:03:01.3]}
2... c5 {[%clk 0:02:57.9]} 3. g3 {[%clk 0:03:00.7]} 3... h5 {[%clk 0:02:57.1]}
4. Nf3 {[%clk 0:02:56.5]} 4... b6 {[%clk 0:02:57.2]} 5. Bg2 {[%clk 0:02:56.3]}
5... Bb7 {[%clk 0:02:57.2]} 6. d4 {[%clk 0:02:57.4]} 6... cxd4 {[%clk
0:02:57.5]} 7. Qxd4 {[%clk 0:02:58.2]} 7... h4 {[%clk 0:02:50.1]} 8. O-O {[%clk
0:02:54.8]} 8... hxg3 {[%clk 0:02:49.4]} 9. fxg3 {[%clk 0:02:54.1]} 9... e6
{[%clk 0:02:41.4]} 10. e3 {[%clk 0:02:55.2]} 10... a6 {[%clk 0:02:31.9]} 11. a3
{[%clk 0:02:49.9]} 11... Qc7 {[%clk 0:02:32.5]} 12. b4 {[%clk 0:02:48.6]} 12...
d6 {[%clk 0:02:30.3]} 13. Bb2 {[%clk 0:02:44.2]} 13... Nbd7 {[%clk 0:02:30.1]}
14. Rac1 {[%clk 0:02:45.3]} 14... Rc8 {[%clk 0:02:29.8]} 15. Qd2 {[%clk
0:02:36.4]} 15... Be7 {[%clk 0:02:23.1]} 16. Ng5 {[%clk 0:01:55.5]} 16... Ne5
{[%clk 0:01:40.6]} 17. Nce4 {[%clk 0:01:36.4]} 17... Rh6 {[%clk 0:00:23.8]} 18.
Nxd6+ {[%clk 0:01:16.9]} 18... Bxd6 {[%clk 0:00:20.1]} 19. Bxb7 {[%clk
0:01:16.7]} 19... Rd8 {[%clk 0:00:19.6]} 20. Qg2 {[%clk 0:01:15.9]} 20... Neg4
{[%clk 0:00:20.1]} 21. Qc6+ {[%clk 0:01:09.4]} 21... Qxc6 {[%clk 0:00:19.1]} 22.
Bxc6+ {[%clk 0:01:11.3]} 22... Ke7 {[%clk 0:00:20.6]} 23. c5 {[%clk 0:00:56.6]}
23... bxc5 {[%clk 0:00:21.2]} 24. bxc5 {[%clk 0:00:57.5]} 24... Bc7 {[%clk
0:00:23.1]} 25. Nf3 {[%clk 0:00:46.9]} 25... Nxe3 {[%clk 0:00:23.2]} 26. Rfe1
{[%clk 0:00:47.4]} 26... Nf5 {[%clk 0:00:21.6]} 27. Rcd1 {[%clk 0:00:45.5]}
27... Rb8 {[%clk 0:00:22.6]} 28. Re2 {[%clk 0:00:39.9]} 28... Kf8 {[%clk
0:00:20.1]} 29. Be5 {[%clk 0:00:39.2]} 29... Bxe5 {[%clk 0:00:19.7]} 30. Nxe5
{[%clk 0:00:41.1]} 30... Rc8 {[%clk 0:00:21.2]} 31. Rd3 {[%clk 0:00:22.3]} 31...
Ne7 {[%clk 0:00:22.5]} 32. Bb7 {[%clk 0:00:22]} 32... Rb8 {[%clk 0:00:22.7]} 33.
c6 {[%clk 0:00:22.3]} 33... Ne8 {[%clk 0:00:22.9]} 34. Nd7+ {[%clk 0:00:23.4]}
34... Kg8 {[%clk 0:00:23.9]} 35. Nxb8 {[%clk 0:00:25.3]} 35... Nc7 {[%clk
0:00:24.9]} 36. Rd7 {[%clk 0:00:24.6]} 36... Ned5 {[%clk 0:00:26.2]} 37. Nxa6
{[%clk 0:00:24.2]} 37... Nxa6 {[%clk 0:00:26.3]} 38. Bxa6 {[%clk 0:00:25.3]}
38... Rf6 {[%clk 0:00:27.5]} 39. Rxd5 {[%clk 0:00:26.3]} 39... exd5 {[%clk
0:00:28.5]} 40. c7 {[%clk 0:00:27.7]} 1-0